Cogmind - Beta 10.1 @@@ ROGUE MODE // 2020.10.12 @ 15:34:39 Player: Cracklepappy Result: Destroyed by as-03773 with Assembled Rifle Performance ------------- Evolutions (0) 0 Regions Visited (0) 0 Robots Destroyed (2) 10 Value Destroyed (13) 13 Prototype IDs (0) 0 Alien Tech Used (0) 0 Bonus (0) 0 TOTAL SCORE: 23 Bonus ------- None Cogmind --------- Core Integrity 0/250 Matter 290/300 Energy 60/100 System Corruption 0% Temperature Cool (40) Movement Core (100) Ox1 Location -11/Scrapyard Parts ------- > --- POWER (1) -------- (None) > --- PROPULSION (2) --- (None) > --- UTILITY (2) ------ Small Storage Unit Improved Terrain Scanner > --- WEAPON (2) ------- (None) > --- INVENTORY (6) ---- Light Ion Engine Light Treads Light Treads Aluminum Leg Peak State ------------ > --- POWER ------------ Ion Engine > --- PROPULSION ------- Compact Wheel Compact Wheel > --- UTILITY ---------- Small Storage Unit Improved Terrain Scanner > --- WEAPON ----------- Medium Laser Mining Laser > --- INVENTORY -------- Light Treads Light Treads Medium Laser Small Laser [Rating: 8] Favorites ----------- Power Ion Engine Engine Ion Engine Propulsion Compact Wheel Wheel Compact Wheel Utility Small Storage Unit Device Improved Terrain Scanner Storage Small Storage Unit Weapon Medium Laser Energy Gun Medium Laser Special Weapon Mining Laser Build | -11 ------- Run | Scr Slots Evolved . | . Power . | . Propulsion . | . Utility . | . Weapon . | . Parts Attached 11 | 11 Power 1 | 1 Engine 1 | 1 Core . | . Reactor . | . Propulsion 2 | 2 Treads . | . Leg . | . Wheel 2 | 2 Hover . | . Flight . | . Utility 2 | 2 Device 1 | 1 Storage 1 | 1 Processor . | . Hackware . | . Protection . | . Artifact . | . Weapon 6 | 6 Energy Gun 5 | 5 Energy Cannon . | . Ballistic Gun . | . Ballistic Cannon . | . Launcher . | . Special Weapon 1 | 1 Impact Weapon . | . Slashing Weapon . | . Piercing Weapon . | . Special Melee Weapon . | . Unidentified Prototypes . | . Parts Lost 7 | 7 Power 1 | 1 Propulsion 2 | 2 Utility . | . Weapon 4 | 4 Highest Loss Streak 7 | 7 Average Slot Usage (%) . | . Naked Turns . | . Heaviest Build 13 | 13 Greatest Support 32 | 32 Greatest Overweight (x) . | . Average Overweight (x) . | . Largest Inventory Capacity 6 | 6 Average Capacity 5 | 5 Most Carried 6 | 6 Average Carried 5 | 5 Final Capacity 6 | 6 Final Carried 4 | 4 Class Distribution -------------------- None Dominant Class ---------------- None Resources | -11 ----------- Run | Scr Matter Collected 280 | 280 Remotely . | . Salvage Created 99 | 99 Parts 5 | 5 Haulers Intercepted . | . Recyclers Shooed 1 | 1 Parts Field Recycled . | . Retrieved Matter . | . Parts Self-Destructed . | . Prevented . | . Kills | -11 ------- Run | Scr Combat Hostiles Destroyed . | . Classes Destroyed 2 | 2 Tunneler 1 | 1 Recycler 1 | 1 Best Kill Streak 2 | 2 Combat Bots Only . | . Max Kills in Single Turn 1 | 1 Gunslinging . | . Exploded . | . Melee . | . Uniques/NPCs Destroyed . | . Combat | -11 -------- Run | Scr Damage Taken 628 | 628 Core 260 | 260 Absorbed by Shields . | . Core Remaining (%) . | . Volleys Fired 95 | 95 Largest 2 | 2 Hottest 100 | 100 Shots Fired 101 | 101 Gun 17 | 17 Cannon . | . Launcher . | . Special 84 | 84 Kinetic . | . Thermal 101 | 101 Explosive . | . Electromagnetic . | . Robot Hit Streak 5 | 5 Robot Miss Streak 1 | 1 Penetration Max . | . Secondary Targets . | . Shots Hit Robots 9 | 9 Core Hits 5 | 5 Critical Hits . | . Critical Kills . | . Critical Parts Destroyed . | . Melee Attacks . | . Impact . | . Slashing . | . Piercing . | . Sneak Attacks . | . Combat Hostiles . | . Follow-up Attacks . | . Damage Inflicted 105 | 105 Guns 92 | 92 Cannons . | . Explosions . | . Melee . | . Ramming 13 | 13 Kinetic . | . Thermal 92 | 92 Explosive . | . Electromagnetic . | . Impact . | . Slashing . | . Piercing . | . Highest Corruption . | . Average Corruption . | . Corruption Purged . | . Overload Shots . | . Overflow Damage . | . Projectiles . | . Explosions . | . Melee . | . Knockbacks . | . Impact . | . Kinetic . | . Secondary . | . Self-Inflicted Damage 10 | 10 Shots . | . Rammed 2 | 2 Targets Rammed 2 | 2 Kicked . | . Crushed . | . Highest Temperature 220 | 220 Average Temperature 56 | 56 Received Heat Transfer 160 | 160 Siege Activations . | . Robots Corrupted . | . Combat Hostiles . | . Parts Fried . | . Impact Corruptions . | . Robots Melted . | . Combat Hostiles . | . Parts Melted 1 | 1 Heat Transferred 248 | 248 Parts Sabotaged . | . Parts Stolen . | . Parts Stripped . | . Power Chain Reactions . | . Missiles Intercepted . | . Alert | -11 ------- Run | Scr Peak Influence 10 | 10 Initial . | . Average 3 | 3 Maximum Alert Level . | . Low Security (%) 100 | 100 Level 1 . | . Level 2 . | . Level 3 . | . Level 4 . | . Level 5 . | . High Security . | . Max Security . | . Squads Dispatched . | . Investigation . | . Extermination . | . Reinforcement . | . Assault . | . Garrison . | . Intercept . | . Construction Impeded . | . Haulers Reinforced . | . Stealth | -11 --------- Run | Scr Distress Signals . | . Communications Jammed . | . Distress Signals . | . Times Spotted 20 | 20 Peak Tracking Total 20 | 20 Tactical Retreats . | . Traps | -11 ------- Run | Scr Traps Triggered . | . Indirectly . | . Trap Hack Attempts . | . Triggered . | . Disarmed . | . Reprogrammed . | . Reused . | . Traps Extracted . | . Installed . | . Triggered . | . Machines | -11 ---------- Run | Scr Machines Disabled . | . Max in Single Turn . | . Machines Sabotaged . | . Garrisons Compromised . | . Overloaded Fab Kills . | . Fab Network Shutdowns . | . Hacking | -11 --------- Run | Scr Machines Accessed . | . Terminals . | . Fabricators . | . Repair Stations . | . Recycling Units . | . Scanalyzers . | . Garrison Access . | . Total Hacks . | . Successful . | . Failed . | . Catastrophic . | . Database Lockouts . | . Manual . | . Terminals . | . Fabricators . | . Repair Stations . | . Recycling Units . | . Scanalyzers . | . Garrison Access . | . Terminal Hacks . | . Fabricator Hacks . | . Repair Station Hacks . | . Recycling Unit Hacks . | . Scanalyzer . | . Garrison Access Hacks . | . Unauthorized Hacks . | . Terminals . | . Fabricators . | . Repair Stations . | . Recycling Units . | . Scanalyzers . | . Garrison Access . | . Data Cores Recovered . | . Used . | . Hacking Detections . | . Full Trace Events . | . Feedback Events . | . Feedback Blocked . | . Robot Schematics Acquired . | . Robots Built . | . Matter . | . Time . | . Total Robot Build Rating . | . Part Schematics Acquired . | . Parts Built . | . Matter . | . Time . | . Total Part Build Rating . | . Parts Repaired . | . Time . | . Parts Recycled . | . Recycled Matter . | . Retrieved Matter . | . Retrieved Components . | . Parts Scanalyzed . | . Part Schematics Acquired . | . Parts Damaged . | . Bothacking | -11 ------------ Run | Scr Used RIF Installer . | . Robots Hacked . | . Non-combat . | . Combat . | . Robot Hacks Applied . | . Relay Couplers Released . | . Robots Rewired . | . Allies Hacked . | . Hacks Repelled . | . Allies | -11 -------- Run | Scr Total Allies . | . Largest Group . | . Highest-Rated Group . | . Highest-Rated Ally . | . Total Orders . | . Ally Attacks . | . Total Damage . | . Kills . | . Allies Corrupted . | . Allies Melted . | . Intel | -11 ------- Run | Scr Robot Analysis Total . | . Derelict Logs Recovered . | . Drone Launches . | . Drone Recoveries . | . Exploration | -11 ------------- Run | Scr Turns Passed 1164 | 1164 Spaces Moved 312 | 312 Core 6 | 6 Treads . | . Legs . | . Wheels 306 | 306 Hover . | . Flight . | . Fastest Speed 50 | 50 Average Speed 99 | 99 Slowest Speed 100 | 100 Overloaded Moves . | . Propulsion Burnouts . | . Robots Hopped . | . Cave-ins Triggered . | . Exploration Rate (%) 13 | 13 Regions Visited . Branch Regions . Pre-discovered Areas . | . Known Exits Taken . | . Unknown Exits Taken . | . Scrap Searched . | . Spaces Dug 15 | 15 Terrain Destroyed 23 | 23 Melee . | . Projectile 23 | 23 AOE . | . Terrain Rammed 2 | 2 Walls Destroyed . | . Machines Disabled . | . Actions | -11 --------- Run | Scr Total 894 | 894 Wait 466 | 466 Move 312 | 312 Hop . | . Pick Up 6 | 6 Fast Attach 7 | 7 Attach 2 | 2 Detach . | . Swap 2 | 2 Drop . | . Fire 95 | 95 Melee . | . Ram 4 | 4 Kick . | . Crush . | . Escape Stasis . | . Rewire . | . Trap . | . Miscellaneous . | . Route ------- -11/Scrapyard (discovered 1 exit: [*Mat]) History --------- Turn | Location | Event 9 | -11/Scrapyard | Discovered new exit (range 15) 1151 | -11/Scrapyard | Assembled infested the area 1155 | -11/Scrapyard | Core integrity fell below 50% 1164 | -11/Scrapyard | Core integrity fell below 20% 1165 | -11/Scrapyard | Destroyed by as-03773 with Assembled Rifle Last Messages --------------- 01151_ K-01 Serf destroyed. 01151_ Slammed into as-75982. 01151_ Mining Laser destroyed. 01152_ Slammed into as-75982. 01152_ Destabilizing: Core damaged (-2). 01152_ as-71649 destroyed. 01152_ Med. Laser destroyed. 01156_ as-94312 destroyed. 01156_ Com. Wheel destroyed. 01156_ Ion Engine destroyed. 01160_ Med. Laser destroyed. 01162_ Critical hit. 01162_ Sml. Laser destroyed. 01164_ Rammed Earth. 01164_ Destabilizing: Core damaged (-5). 01164_ Destabilizing: System interference. 01164_ Imp. Terrain Scanner temporarily disabled. 01165_ Rammed Earth. 01165_ Imp. Terrain Scanner permanently disabled. 01165_ Destabilizing: Short circuit. Map ----- +----------------------------------------------------+ | | | | | | | | | | | | | | | | | | | | | | | | | | | | | | | | | | | | | | | | | | | | | ?????????????#??#?#??#?##???##???#??#?#????? | | ????????????#???#?????#?????#??????????#???? | | ???????????????????#??#?###??????##???#????? | | ????????????#????#??#???#@#?#???#????#?????? | | ???????????#??????#?????#a###??##??#????#??? | | ???????????????#??#??####a ####????#?#?????? | | ??????????#??????#??### aaa# ##??#??##?????? | | ??????????????##?#?## aaaa #?????#??##??? | | ????????????????###### aaa ###?###??##?#? | | ??????????????####?#?# a a #???#?#??????? | | ?????????????###??##### #?##?#?###???? | | ???????????????###?#### #?###???##???# | | ????????????####?????## ###??#?###?#???? | | ???????????#?#??######### ##?#???????##???? | | ??????????#?###?#????#?# #??###?##?###???? | | ??????????##?###??##?#?## ##?###?##?????#?? | | ????????????#?##?#?????## #######?????##?? | | ????????#????#??#?####### ###?####?##?#?#?? | | ??????#??????#??###??#####%##?##?#####?#???? | | ??????????#??#????###?#??#= #?#??#?#?#?#??#? | | ?????#?#??##??##?????#?### ###?##?#?#?##?#?? | | ??????#????###?########## ##?###??#????##??? | | ??????##????#??### #######??##?##?#??? | | ???#???????##?#### # # ######?#?#??? | | ?????#?#??#?????## #?#??#?? | | ??????????#??????# # ############?#?#? | | ?????#???#??????## # #?????#?###?#???? | | ??#??#??????????## # ########???#????# | +----------------------------------------------------+ Best States ------------- Heat Dissipation 25 Energy Generation 10 Energy Capacity 250 Matter Stores 300 Matter Capacity 300 Sight Range 16 Terrain Scan Range 16 Terrain Scan Density 10 Evasion (%) 40 Item Schematics ----------------- None Robot Schematics ------------------ None Fabricated ------------ Nothing Alien Tech Used ----------------- None Achievements -------------- None Challenges ------------ None Game ------ Seed PowerDimensionalSabre Manual? 0 Play Time 00:09:04 Cumulative 209.2 hours Start 2020.10.12 @ 15:30:06 End 2020.10.12 @ 15:34:39 Sessions 0 Manual Loads 0 Difficulty Rogue Special Mode None Game No. 232 Rogue 232 Adventurer 0 Explorer 0 Win Type - Total 2 Types 2/0/0/0/0/0/0/0/0 Lore% 61 Gallery% 75 Achievement% 58 Wizard Run 0 Options --------- ASCII 0 Keyboard 0 Movement Numpad Keybinds 0 Fullscreen 2 Font 24/Smallcaps Map View 76x50 Tactical HUD 1 Map Filters NONE Filters NONE Steam 1 RUN: 5c53f193-0a3f-448f-aec8-baf6ed75ab78